bitfinex/quotes_BTCUSD_20240906
["timestamp","ask_amount","ask_price","bid_price","bid_amount"]
[1725603039313,1.78645697,56527.0,56526.0,0.0802]
[1725603039510,1.85744797,56527.0,56526.0,0.0802]
[1725603041093,1.91994797,56527.0,56526.0,0.002]
[1725603041296,1.592356,56520.0,56518.0,0.08314]
[1725603041492,1.692356,56520.0,56518.0,0.08314]
[1725603042030,1.72010856,56520.0,56518.0,0.08314]
[1725603042243,1.72010856,56520.0,56518.0,0.0009456]
[1725603042244,1.23852,56519.0,56518.0,0.0009456]
[1725603042452,1.36152,56519.0,56518.0,0.00047872]
[1725603042661,1.715383,56519.0,56518.0,0.00047872]
[1725603042866,2.069246,56519.0,56518.0,0.00047872]
[1725603043302,2.11597574,56519.0,56518.0,0.00047872]
[1725603043511,1.91567755,56519.0,56518.0,0.00047872]
[1725603043893,2.08360855,56519.0,56518.0,1.184e-05]
[1725603044093,1.238695,56511.0,56510.0,0.0815]
[1725603044316,1.338695,56511.0,56510.0,0.0815]
[1725603044522,1.338695,56511.0,56510.0,0.16831685]
[1725603044730,1.72036426,56511.0,56510.0,0.147]
[1725603044926,1.36645126,56511.0,56510.0,0.147]
[1725603045924,1.37245126,56511.0,56510.0,0.147]
[1725603046474,1.01853826,56511.0,56510.0,0.157]
[1725603048332,1.03636867,56511.0,56510.0,0.157]
[1725603051629,1.39028167,56511.0,56510.0,0.157]
[1725603056393,1.39028167,56511.0,56510.0,0.147]
[1725603059506,1.39028167,56511.0,56510.0,0.148632]
[1725603060133,1.74419467,56511.0,56510.0,0.148632]
[1725603060330,1.39028167,56511.0,56510.0,0.148632]
[1725603060862,1.39028167,56511.0,56510.0,0.158632]
[1725603061072,0.13375626,56511.0,56510.0,0.158632]
[1725603061285,0.31071226,56511.0,56510.0,0.17994885]
[1725603061488,1.01853826,56511.0,56510.0,0.17994885]
[1725603061943,0.66462526,56511.0,56510.0,0.158632]
[1725603062315,0.66462526,56511.0,56510.0,0.17994885]
[1725603062510,0.66462526,56511.0,56510.0,0.158632]
[1725603062965,0.66462526,56511.0,56510.0,0.17994885]
[1725603063177,0.31071226,56511.0,56510.0,0.17994885]
[1725603063918,0.03375626,56511.0,56510.0,0.71082685]
[1725603064246,0.03375626,56511.0,56510.0,1.06474585]
[1725603064456,0.03375626,56511.0,56510.0,1.42066485]
[1725603064677,0.000816,56518.0,56517.0,0.1603]
[1725603065030,0.000816,56518.0,56517.0,0.685112]
[1725603065229,0.02856505,56518.0,56517.0,0.17560261]
[1725603065564,0.02856505,56518.0,56517.0,0.70641461]
[1725603065764,0.02856505,56518.0,56517.0,1.06228961]
[1725603065970,0.02856505,56518.0,56517.0,1.41616461]
[1725603066997,0.02856505,56518.0,56517.0,1.06228961]
[1725603067559,0.02856505,56518.0,56517.0,0.70641461]
[1725603067775,0.02856505,56518.0,56517.0,0.18060261]
[1725603067948,0.02856505,56518.0,56517.0,0.18260261]
[1725603068308,0.02856505,56518.0,56517.0,0.18060261]
[1725603069313,0.02856505,56518.0,56517.0,0.71141461]
[1725603070109,0.02856505,56518.0,56517.0,0.35753961]
[1725603070347,0.02856505,56518.0,56517.0,0.18060261]
[1725603070594,0.30527129,56519.0,56517.0,0.18060261]
[1725603070799,0.176932,56519.0,56517.0,0.18060261]
[1725603071022,0.176928,56520.0,56518.0,0.147]
[1725603071239,0.530767,56522.0,56521.0,0.151]
[1725603071479,0.176922,56522.0,56521.0,0.151]
[1725603071678,0.176918,56524.0,56523.0,0.004]
[1725603071900,0.530709,56528.0,56527.0,0.151]
[1725603072125,0.630709,56528.0,56527.0,0.151]
[1725603072337,0.630709,56528.0,56527.0,0.17228227]
[1725603072760,0.630709,56528.0,56527.0,0.151]
[1725603072964,0.630709,56528.0,56527.0,0.17228227]
[1725603073162,1.0122614,56528.0,56527.0,0.17228227]
[1725603074923,1.0182614,56528.0,56527.0,0.17328227]
[1725603075864,0.3106494,56528.0,56527.0,0.17328227]
[1725603076069,0.6644554,56528.0,56527.0,0.17328227]
[1725603077407,0.0337464,56528.0,56527.0,0.17328227]
[1725603077819,0.0337464,56528.0,56527.0,0.17681997]
[1725603078027,0.5644554,56528.0,56527.0,0.17681997]
[1725603078916,0.5644554,56528.0,56527.0,0.17328227]
[1725603080713,0.0337464,56528.0,56527.0,0.35018827]
[1725603081604,0.0337464,56528.0,56527.0,0.17328227]
[1725603082105,0.0337464,56528.0,56527.0,0.35018827]
[1725603082796,0.9182614,56528.0,56527.0,0.17328227]
[1725603083435,0.5644554,56528.0,56527.0,0.17328227]
[1725603084047,0.5644554,56528.0,56527.0,0.152]
[1725603085350,0.5644554,56528.0,56527.0,0.17134752]
[1725603085760,0.2114654,56528.0,56527.0,0.17134752]
[1725603086166,0.0345624,56528.0,56527.0,0.17134752]
[1725603086372,0.0345624,56528.0,56527.0,0.34825352]
[1725603087039,0.0345624,56528.0,56527.0,0.17134752]
[1725603087237,0.2114654,56528.0,56527.0,0.17134752]
[1725603087657,0.5652714,56528.0,56527.0,0.17134752]
[1725603087845,0.2114654,56528.0,56527.0,0.17134752]
[1725603088492,0.006816,56528.0,56527.0,0.17134752]
[1725603088800,0.183719,56528.0,56527.0,0.17134752]
[1725603093115,0.006816,56528.0,56527.0,0.17134752]
[1725603093284,0.183719,56528.0,56527.0,0.17134752]
[1725603093690,0.006816,56528.0,56527.0,0.17134752]
[1725603093853,0.183719,56528.0,56527.0,0.152]
[1725603094053,0.183719,56528.0,56527.0,0.17134752]
[1725603097018,0.006816,56528.0,56527.0,0.17134752]
[1725603097419,0.006816,56528.0,56527.0,0.34825352]
[1725603097623,0.006816,56528.0,56527.0,0.17134752]
[1725603098360,0.21146457,56528.0,56527.0,0.17134752]
[1725603098571,0.03456157,56528.0,56527.0,0.17134752]
[1725603102240,0.21146457,56528.0,56527.0,0.17134752]
[1725603102539,0.03456157,56528.0,56527.0,0.17134752]
[1725603104078,0.56527057,56528.0,56527.0,0.17134752]
[1725603104863,0.56527057,56528.0,56527.0,0.10264752]
[1725603109775,1.37580129,56528.0,56527.0,0.02034752]
[1725603109992,1.88792355,56528.0,56527.0,0.02034752]
[1725603110225,1.88792355,56528.0,56527.0,0.001]
[1725603110664,1.88792355,56528.0,56527.0,0.005]
[1725603111280,1.84119381,56528.0,56527.0,0.005]
[1725603111767,1.69001094,56528.0,56527.0,0.005]
[1725603111927,1.86691394,56528.0,56527.0,0.005]
[1725603113291,1.8195087,56528.0,56527.0,0.005]
[1725603114031,1.84725696,56528.0,56527.0,0.005]
[1725603117581,1.78015696,56528.0,56527.0,0.005]
[1725603118132,1.07254496,56528.0,56527.0,0.0688]
[1725603118981,0.96254496,56528.0,56527.0,0.0688]
[1725603119109,0.96254496,56528.0,56527.0,0.08814752]
[1725603119308,0.96254496,56528.0,56527.0,0.0688]
[1725603119990,0.96254496,56528.0,56527.0,0.08814752]
[1725603120403,0.60873896,56528.0,56527.0,0.08814752]
[1725603120607,0.60873896,56528.0,56527.0,0.16794752]
[1725603120801,0.12774826,56528.0,56527.0,0.16794752]
[1725603121071,0.30465126,56528.0,56527.0,0.16794752]
[1725603121704,0.65845726,56528.0,56527.0,0.16794752]
[1725603122885,0.30465126,56528.0,56527.0,0.16794752]
[1725603123036,0.12856426,56528.0,56527.0,0.16794752]
[1725603123448,0.30546726,56528.0,56527.0,0.16794752]
[1725603123847,0.12856426,56528.0,56527.0,0.16794752]
[1725603124073,0.30546726,56528.0,56527.0,0.16794752]
[1725603125013,0.12856426,56528.0,56527.0,0.69866652]
[1725603125616,0.02856426,56528.0,56527.0,0.69866652]
[1725603125966,0.02856426,56528.0,56527.0,0.69766652]
[1725603126374,0.03356426,56528.0,56527.0,0.69766652]
[1725603126791,0.02856426,56528.0,56527.0,0.69766652]
[1725603128351,0.02956426,56528.0,56527.0,0.70566652]
[1725603129530,0.001816,56528.0,56527.0,0.70566652]
[1725603131880,0.001816,56528.0,56527.0,0.35185352]
[1725603132657,0.02956145,56528.0,56527.0,0.35185352]
[1725603132858,0.353788,56531.0,56527.0,0.35185352]
[1725603133069,0.176897,56530.0,56527.0,0.35185352]
[1725603133265,0.02774552,56528.0,56527.0,0.35185352]
[1725603135423,0.02774552,56528.0,56527.0,0.16857952]
[1725603135630,0.95899026,56528.0,56527.0,0.10477952]
[1725603135855,1.0072115,56528.0,56527.0,0.18067952]
[1725603135979,0.91307652,56528.0,56527.0,0.161332]
[1725603136183,0.91307652,56528.0,56527.0,0.157332]
[1725603136563,0.91307652,56528.0,56527.0,0.17667952]
[1725603136966,0.55927052,56528.0,56527.0,0.17667952]
[1725603137094,0.56027052,56528.0,56527.0,0.18467952]
[1725603139615,0.001816,56528.0,56527.0,0.18467952]
[1725603139834,0.178719,56528.0,56527.0,0.18467952]
[1725603140051,0.001816,56528.0,56527.0,0.71539852]
[1725603140258,0.001816,56528.0,56527.0,1.06921152]
[1725603140459,0.001816,56528.0,56527.0,1.07121152]
[1725603140602,0.001816,56528.0,56527.0,1.42502452]
[1725603142071,0.000816,56528.0,56527.0,1.41702452]
[1725603142524,0.02855872,56528.0,56527.0,1.43002452]
[1725603143631,0.000816,56528.0,56527.0,1.43002452]
[1725603143833,0.000816,56528.0,56527.0,1.07621152]
[1725603144040,0.000816,56528.0,56527.0,1.07421152]
[1725603144251,0.000816,56528.0,56527.0,1.42802452]
[1725603145473,0.000816,56528.0,56527.0,1.43002452]
[1725603147867,0.02855857,56528.0,56527.0,1.43002452]
[1725603149702,0.000816,56528.0,56527.0,1.43002452]
[1725603151320,0.000816,56528.0,56527.0,1.90616337]
[1725603151514,0.000816,56528.0,56527.0,1.95916337]
[1725603152312,0.000816,56528.0,56527.0,1.94616337]
[1725603152519,0.000816,56528.0,56527.0,1.87143337]
[1725603152724,0.000816,56528.0,56527.0,1.51762037]
[1725603153133,0.000816,56528.0,56527.0,1.37129452]
[1725603153336,0.000816,56528.0,56527.0,1.38529452]
[1725603153750,0.000816,56528.0,56527.0,1.37129452]
[1725603153998,0.02855546,56528.0,56527.0,1.37129452]
[1725603154752,0.02855546,56528.0,56527.0,2.59979452]
[1725603155516,0.02855546,56528.0,56527.0,2.66429452]
[1725603155823,0.02855546,56528.0,56527.0,2.66729452]
[1725603156489,0.02855546,56528.0,56527.0,2.66429452]
[1725603156633,0.02855546,56528.0,56527.0,2.67829452]
[1725603159697,0.000816,56528.0,56527.0,2.67992652]
[1725603159968,0.000816,56528.0,56527.0,2.80225237]
[1725603160140,0.000816,56528.0,56527.0,3.18906537]
[1725603161862,0.000816,56528.0,56527.0,3.17506537]
[1725603162213,0.000816,56528.0,56527.0,3.18806537]
[1725603162556,0.000816,56528.0,56527.0,3.17506537]
[1725603162958,0.000816,56528.0,56527.0,3.18906537]
[1725603163507,0.000816,56528.0,56527.0,3.17506537]
[1725603163714,0.000816,56528.0,56527.0,3.54287837]
[1725603164195,0.000816,56528.0,56527.0,3.64287837]
[1725603165146,0.000816,56528.0,56527.0,3.62887837]
[1725603165516,0.000816,56528.0,56527.0,3.64287837]
[1725603165922,0.000816,56528.0,56527.0,3.62887837]
[1725603166304,0.000816,56528.0,56527.0,3.64287837]
[1725603168446,0.000816,56528.0,56527.0,3.62887837]
[1725603168661,0.000816,56528.0,56527.0,3.64287837]
[1725603169175,0.000816,56528.0,56527.0,3.62887837]
[1725603169468,0.000816,56528.0,56527.0,3.64287837]
[1725603170886,0.000817,56533.0,56532.0,1.977795]
[1725603171106,1e-06,56533.0,56532.0,3.98100185]
[1725603171344,0.000817,56535.0,56534.0,1.422791]
[1725603171345,1e-06,56535.0,56534.0,1.422791]
[1725603171570,1e-06,56535.0,56534.0,2.253329]
[1725603171804,1e-06,56535.0,56534.0,3.87793258]
[1725603172032,0.52650515,56558.0,56534.0,3.87793258]
[1725603172033,0.52650515,56558.0,56541.0,1.89868785]
[1725603172248,0.52650515,56558.0,56541.0,2.37541285]
[1725603172471,0.176778,56568.0,56550.0,1.62351]
[1725603172712,0.353549,56570.0,56550.0,1.62351]
[1725603172713,0.0689,56570.0,56550.0,3.27293485]
[1725603172918,0.0277247,56557.0,56550.0,3.29223988]
[1725603174062,0.0277247,56557.0,56550.0,3.39888352]
[1725603174269,0.0277247,56557.0,56550.0,3.75255252]
[1725603174473,0.0277247,56557.0,56550.0,3.39888352]
[1725603174906,0.0277247,56557.0,56550.0,3.75255252]
[1725603175760,0.0277247,56557.0,56550.0,3.76655252]
[1725603178690,0.0277247,56557.0,56550.0,3.41288352]
[1725603179545,0.0677,56563.0,56550.0,3.41288352]
[1725603180781,0.0677,56563.0,56550.0,2.73144503]
[1725603181008,0.0677,56553.0,56550.0,2.54464503]
[1725603181671,0.0677,56553.0,56550.0,1.28314603]
[1725603181944,0.0677,56553.0,56550.0,1.29114603]
[1725603182387,0.0677,56553.0,56550.0,1.29314603]
[1725603182570,0.0677,56553.0,56550.0,1.27714603]
[1725603183827,0.0677,56553.0,56550.0,1.29014603]
[1725603184241,0.0677,56556.0,56550.0,1.27914603]
[1725603185023,0.0677,56556.0,56550.0,1.29314603]
[1725603185245,0.0677,56556.0,56550.0,1.30314603]
[1725603186055,0.02854472,56551.0,56550.0,1.30314603]
[1725603187974,0.02854472,56551.0,56550.0,1.30114603]
[1725603188430,0.02854472,56551.0,56550.0,0.91747703]
[1725603188634,0.02854472,56551.0,56550.0,0.92747703]
[1725603189400,0.02854472,56551.0,56550.0,1.28114603]
[1725603190205,0.000816,56551.0,56550.0,1.28114603]
[1725603191440,0.000816,56551.0,56550.0,1.29314603]
[1725603193310,0.02854507,56551.0,56550.0,1.29314603]
[1725603194366,0.02854507,56551.0,56550.0,0.92747703]
[1725603194573,0.02854507,56551.0,56550.0,0.94747703]
[1725603194761,0.02854507,56551.0,56550.0,1.30114603]
[1725603195307,0.02854507,56551.0,56550.0,1.28114603]
[1725603196268,0.02854507,56551.0,56550.0,0.91747703]
[1725603197981,0.02854507,56551.0,56550.0,0.92747703]
[1725603198792,0.02854507,56551.0,56550.0,0.91747703]
[1725603199001,0.176814,56557.0,56554.0,0.176821]
[1725603199203,0.176814,56557.0,56555.0,0.01929579]
[1725603199755,0.17681,56558.0,56555.0,0.01929579]
[1725603200317,0.17681,56558.0,56555.0,0.19611379]
[1725603200577,0.353613,56559.0,56555.0,0.01929579]
[1725603200780,0.17681,56558.0,56555.0,0.01929579]
[1725603201267,0.176812,56557.0,56555.0,0.02829579]
[1725603201464,0.353613,56559.0,56555.0,0.02829579]
[1725603201673,0.176815,56556.0,56555.0,0.02829579]
[1725603202093,0.244515,56556.0,56555.0,0.02829579]
[1725603202448,0.0954298,56556.0,56555.0,0.02829579]
[1725603203250,0.0954298,56556.0,56555.0,0.01929579]
[1725603203458,0.0954298,56556.0,56555.0,0.02929579]
[1725603203722,0.0954298,56556.0,56555.0,0.01]
[1725603203881,0.0954298,56556.0,56555.0,0.02929579]
[1725603204090,0.0954298,56556.0,56555.0,0.01]
[1725603204284,0.0954298,56556.0,56555.0,0.02929579]
[1725603204483,0.0954298,56556.0,56553.0,0.176825]
[1725603204684,0.0954298,56556.0,56555.0,0.01929579]
[1725603204886,0.0954298,56556.0,56555.0,0.011]
[1725603205209,0.176811,56558.0,56555.0,0.03029579]
[1725603205433,0.02772987,56556.0,56555.0,0.03029579]
[1725603206442,0.02772987,56556.0,56555.0,0.01929579]
[1725603206829,0.02772987,56556.0,56553.0,0.011]
[1725603207093,0.02772987,56556.0,56554.0,0.01929764]
[1725603207685,0.02772987,56556.0,56555.0,0.011]
[1725603207869,0.20454487,56556.0,56555.0,0.03029579]
[1725603208051,0.03624587,56556.0,56555.0,0.011]
[1725603208277,0.03624587,56556.0,56555.0,0.01929579]
[1725603208571,0.03624587,56556.0,56552.0,0.176827]
[1725603208971,0.03624587,56556.0,56553.0,0.176825]
[1725603209234,0.03624587,56556.0,56553.0,0.19612448]
[1725603209438,0.03280782,56556.0,56553.0,0.19612448]
[1725603209654,0.02510782,56556.0,56553.0,0.19612448]
[1725603209861,0.000816,56556.0,56553.0,0.19612448]
[1725603210288,0.000816,56556.0,56554.0,0.011]
[1725603210687,0.000816,56556.0,56555.0,0.01929579]
[1725603211419,0.000816,56556.0,56553.0,0.176825]
[1725603211590,0.000816,56556.0,56554.0,0.01929764]
[1725603211795,0.000816,56556.0,56554.0,0.03029764]
[1725603212161,0.0077,56559.0,56554.0,0.03029764]
[1725603212903,0.176813,56557.0,56554.0,0.20711964]
[1725603213138,0.176813,56557.0,56554.0,0.19611964]
[1725603213341,0.20454021,56558.0,56554.0,0.19611964]
[1725603214487,0.176812,56557.0,56554.0,0.19611964]
[1725603214793,0.176812,56557.0,56554.0,0.20611964]
[1725603215085,0.20454021,56558.0,56554.0,0.20611964]
[1725603216225,0.20454021,56558.0,56554.0,0.19611964]
[1725603216659,0.20454021,56558.0,56554.0,0.20511964]
[1725603216861,0.20454121,56558.0,56554.0,0.20511964]
[1725603217203,0.176813,56557.0,56554.0,0.20511964]
[1725603217409,0.538157,56555.0,56554.0,0.02829764]
[1725603217611,0.974595,56555.0,56554.0,0.02829764]
[1725603217817,1.36652682,56555.0,56554.0,0.009]
[1725603218195,0.353684,56548.0,56543.0,1.428354]
[1725603218406,0.353684,56548.0,56544.0,0.02537106]
[1725603218582,0.176844,56547.0,56543.0,1.428354]
[1725603218930,0.176844,56547.0,56544.0,0.02537106]
[1725603219323,0.176844,56547.0,56543.0,1.428354]
[1725603219493,0.176844,56547.0,56545.0,0.02536852]
[1725603219694,0.176844,56547.0,56543.0,1.428354]
[1725603219695,0.176844,56547.0,56544.0,0.02537106]
[1725603219899,0.176844,56547.0,56546.0,0.02536598]
[1725603220112,0.176844,56547.0,56545.0,0.02536852]
[1725603220313,0.176844,56547.0,56546.0,0.02536598]
[1725603220732,0.176844,56547.0,56543.0,1.428354]
[1725603220944,0.176844,56547.0,56546.0,0.02536598]
[1725603221178,0.530532,56547.0,56546.0,0.014]
[1725603221496,0.20283352,56547.0,56546.0,0.014]
[1725603221705,0.20283352,56547.0,56546.0,0.03936598]
[1725603221879,0.20283352,56547.0,56546.0,0.014]
[1725603222087,0.353674,56550.0,56546.0,0.03936598]
[1725603222258,0.176842,56548.0,56546.0,0.014]
[1725603222463,0.176842,56548.0,56547.0,0.02536344]
[1725603222891,0.353681,56548.0,56543.0,1.267131]
[1725603223091,0.0131,56552.0,56543.0,1.267131]
[1725603223092,0.176851,56545.0,56543.0,1.267131]
[1725603223496,0.176847,56546.0,56543.0,1.253131]
[1725603223848,0.20458208,56546.0,56543.0,1.253131]
[1725603224314,0.20458208,56546.0,56543.0,1.429987]
[1725603224529,0.002,56545.0,56543.0,1.429987]
[1725603225839,0.20458208,56546.0,56543.0,1.429987]
[1725603226197,0.20658208,56546.0,56543.0,1.429987]
[1725603226814,0.02973508,56546.0,56543.0,1.429987]
[1725603227125,0.02973508,56546.0,56543.0,1.253131]
[1725603227327,0.20658308,56546.0,56543.0,1.253131]
[1725603227535,0.17685,56545.0,56543.0,1.253131]
[1725603228020,0.02973508,56546.0,56543.0,1.429985]
[1725603228925,0.02773508,56546.0,56543.0,1.429985]
[1725603229255,0.002,56545.0,56543.0,1.429985]
[1725603229711,0.176845,56547.0,56543.0,1.429985]
[1725603230110,0.002,56546.0,56543.0,1.429985]
[1725603230482,0.176849,56546.0,56543.0,1.253131]
[1725603230693,0.176846,56547.0,56543.0,1.429986]
[1725603230870,0.176846,56547.0,56544.0,0.176852]
[1725603231273,0.002,56545.0,56544.0,0.176852]
[1725603232344,0.002,56545.0,56544.0,0.20228868]
[1725603232495,0.176846,56547.0,56544.0,0.20228868]
[1725603232841,0.0277345,56545.0,56544.0,0.20328968]
[1725603233171,0.0277345,56545.0,56544.0,0.02643668]
[1725603233841,0.2045845,56545.0,56544.0,0.02543668]
[1725603234171,0.2065855,56545.0,56543.0,1.253131]
[1725603234448,0.0297345,56545.0,56544.0,0.02543668]
[1725603234664,0.0297345,56545.0,56543.0,1.253131]
[1725603234865,0.0297345,56545.0,56544.0,0.02543668]
[1725603235193,0.0297345,56545.0,56543.0,1.253131]
[1725603235458,0.0297345,56545.0,56544.0,0.02543668]
[1725603235634,0.0277345,56545.0,56544.0,0.02543668]
[1725603235954,0.0297345,56545.0,56543.0,1.253131]
[1725603236137,0.0297345,56545.0,56544.0,0.02543668]
[1725603236513,0.0277345,56545.0,56543.0,1.253131]
[1725603236729,0.0277345,56545.0,56544.0,0.02543668]
[1725603236927,0.9139845,56545.0,56544.0,0.02543668]
[1725603237187,0.884265,56544.0,56543.0,1.253131]
[1725603237394,0.884265,56544.0,56543.0,0.001632]
[1725603237527,1.237971,56544.0,56543.0,0.001632]
[1725603237731,1.251071,56544.0,56543.0,0.001632]
[1725603238430,1.793477,56544.0,56543.0,0.001632]
[1725603238959,1.993477,56544.0,56543.0,0.001632]
[1725603239395,1.995477,56544.0,56543.0,0.001632]
[1725603240234,1.993477,56544.0,56543.0,0.001632]
[1725603240444,2.01291421,56544.0,56543.0,0.001632]
[1725603242076,2.01091421,56544.0,56543.0,0.001632]
[1725603242598,2.01891421,56544.0,56543.0,0.002632]
[1725603244109,2.04665375,56544.0,56543.0,0.002632]
[1725603246224,2.09338349,56544.0,56543.0,0.002632]
[1725603247005,2.09380202,56544.0,56543.0,0.002632]
[1725603248905,2.16390202,56544.0,56543.0,0.002632]
[1725603250071,2.01495375,56544.0,56543.0,0.002632]
[1725603250275,1.81495375,56544.0,56543.0,0.002632]
[1725603256994,1.86168349,56544.0,56543.0,0.002632]
[1725603257580,1.81495375,56544.0,56543.0,0.002632]
[1725603261487,1.86168349,56544.0,56543.0,0.002632]
[1725603262561,1.81495375,56544.0,56543.0,0.002632]
[1725603279915,0.17689,56533.0,56530.0,0.00353749]
[1725603280185,0.11090602,56532.0,56529.0,0.176899]
[1725603280398,0.176891,56532.0,56531.0,0.02728076]
[1725603280604,0.31553993,56532.0,56530.0,0.02728367]
[1725603280829,0.20463387,56532.0,56531.0,0.02728076]
[1725603281056,0.31553993,56532.0,56530.0,0.005]
[1725603281296,0.20463387,56532.0,56531.0,0.03546499]
[1725603281536,0.31553993,56532.0,56531.0,0.03546499]
[1725603282024,0.13864893,56532.0,56530.0,0.182895]
[1725603282248,0.02774287,56532.0,56531.0,0.91993499]
[1725603282479,0.02774287,56532.0,56531.0,1.27372299]
[1725603282480,0.13863864,56532.0,56531.0,1.27372299]
[1725603282725,0.11089577,56532.0,56531.0,1.27572299]
[1725603282961,0.11089577,56532.0,56531.0,1.42452299]
[1725603283624,0.12289577,56532.0,56531.0,1.42552299]
[1725603284325,0.15063584,56532.0,56531.0,1.42552299]
[1725603286613,0.15063584,56532.0,56531.0,0.18726499]
[1725603287239,0.32752584,56532.0,56531.0,0.18726499]
[1725603287660,0.15063584,56532.0,56531.0,0.18726499]
[1725603287873,0.15063584,56532.0,56531.0,0.36415899]
[1725603288505,0.15063584,56532.0,56531.0,0.18726499]
[1725603289569,0.12289577,56532.0,56531.0,0.18726499]
[1725603290113,0.12289577,56532.0,56531.0,0.36415899]
[1725603292971,0.15063618,56532.0,56531.0,0.36415899]
[1725603296236,0.15063618,56532.0,56531.0,0.18726499]
[1725603296445,0.32834218,56532.0,56531.0,0.18726499]
[1725603296708,0.68212318,56532.0,56531.0,0.18726499]
[1725603297517,0.68212318,56532.0,56531.0,0.1518]
[1725603297716,0.68212318,56532.0,56531.0,0.18781499]
[1725603297939,0.68212318,56532.0,56531.0,0.18681499]
[1725603298147,0.67012318,56532.0,56531.0,0.18681499]
[1725603298537,0.67812318,56532.0,56531.0,0.18781499]
[1725603298959,0.32434218,56532.0,56531.0,0.18781499]
[1725603299412,0.67812318,56532.0,56531.0,0.18781499]
[1725603299836,0.67012318,56532.0,56531.0,0.18681499]
[1725603300127,0.28860177,56532.0,56531.0,0.18981499]
[1725603300366,0.11171177,56532.0,56531.0,0.72049699]
[1725603300592,0.11171177,56532.0,56531.0,1.43807299]
[1725603300826,0.11171177,56532.0,56531.0,1.83486099]
[1725603301040,0.11171177,56532.0,56531.0,1.7018099]
[1725603301254,0.000816,56532.0,56531.0,1.7018099]
[1725603301468,0.000816,56532.0,56531.0,2.9533089]
[1725603301716,0.02774078,56539.0,56538.0,1.238104]
[1725603301935,0.13860224,56539.0,56538.0,1.74415055]
[1725603302153,0.02774078,56539.0,56538.0,1.78013709]
[1725603302362,0.02774078,56539.0,56538.0,1.80313709]
[1725603303282,0.02774078,56539.0,56538.0,3.40838009]
[1725603303502,0.000816,56547.0,56543.0,2.09872355]
[1725603303711,0.000816,56547.0,56543.0,3.37322255]
[1725603303919,0.02854768,56547.0,56543.0,3.15547576]
[1725603304134,0.02854768,56547.0,56543.0,3.19427321]
[1725603304578,0.02854768,56547.0,56543.0,3.19327321]
[1725603305200,0.02854768,56547.0,56543.0,2.81656021]
[1725603305380,0.001816,56544.0,56543.0,2.83056021]
[1725603306557,0.000816,56544.0,56543.0,2.81656021]
[1725603307212,0.001816,56544.0,56543.0,2.83056021]
[1725603307845,0.000816,56544.0,56543.0,2.81656021]
[1725603308112,0.001816,56544.0,56543.0,2.83056021]
[1725603309055,0.001816,56544.0,56543.0,2.34684721]
[1725603309198,0.001816,56544.0,56543.0,0.38792221]
[1725603309397,0.001816,56544.0,56543.0,0.29832221]
[1725603309624,0.000816,56544.0,56543.0,0.28432221]
[1725603310033,0.001816,56544.0,56543.0,0.3164604]
[1725603310457,0.001816,56544.0,56543.0,0.6701734]
[1725603310900,0.11267924,56544.0,56543.0,0.6701734]
[1725603311068,0.11167924,56544.0,56543.0,0.6561734]
[1725603311451,0.11267924,56544.0,56543.0,0.6691734]
[1725603311855,0.11267924,56544.0,56543.0,1.0228864]
[1725603312693,0.11167924,56544.0,56543.0,1.0098864]
[1725603313135,0.11267924,56544.0,56543.0,1.0228864]
[1725603313591,0.11167924,56544.0,56543.0,1.0098864]
[1725603313813,0.11267924,56544.0,56543.0,1.3885994]
[1725603314054,0.02954935,56544.0,56543.0,1.8344124]
[1725603314289,0.02954935,56544.0,56543.0,1.8524124]
[1725603314516,0.02854935,56544.0,56543.0,3.1139114]
[1725603314740,0.02954935,56544.0,56543.0,3.1209114]
[1725603315196,0.02954935,56544.0,56543.0,3.4746244]
[1725603315425,0.02954935,56544.0,56543.0,3.5746244]
[1725603315930,0.02854935,56544.0,56543.0,3.5676244]
[1725603316378,0.02954935,56544.0,56543.0,3.5786244]
[1725603316823,0.02854935,56544.0,56543.0,3.5676244]
[1725603317048,0.02954935,56544.0,56543.0,3.5776244]
[1725603318852,0.02954935,56544.0,56543.0,3.2239114]
[1725603319075,0.02854935,56544.0,56543.0,3.2139114]
[1725603319550,0.000816,56544.0,56543.0,3.2279114]
[1725603322073,0.38130375,56566.0,56556.0,0.35363]
[1725603322331,0.38130375,56566.0,56550.0,0.01]
[1725603322332,0.176791,56564.0,56561.0,0.176799]
[1725603322554,0.176791,56564.0,56562.0,0.05498608]
[1725603323253,0.597982,56563.0,56562.0,0.05498608]
[1725603323480,1.14801458,56563.0,56562.0,0.05498608]
[1725603323712,1.14801458,56563.0,56556.0,0.176815]
[1725603323713,0.176806,56559.0,56556.0,0.176815]
[1725603323934,0.176805,56560.0,56556.0,0.176815]
[1725603324154,0.176805,56560.0,56557.0,0.23183192]
[1725603324398,0.11085138,56559.0,56557.0,0.23183192]
[1725603324635,0.02772894,56560.0,56557.0,0.23183192]
[1725603324870,0.02772894,56560.0,56557.0,0.05501992]
[1725603325093,0.02772894,56560.0,56558.0,0.176808]
[1725603325535,0.02772894,56560.0,56559.0,0.05500638]
[1725603327395,0.02772894,56560.0,56558.0,0.176807]
[1725603327608,0.02772894,56560.0,56559.0,0.05500638]
[1725603328300,0.13857553,56560.0,56559.0,0.05500638]
[1725603328782,0.02772894,56560.0,56559.0,0.23181238]
[1725603329000,0.02772894,56560.0,56559.0,0.23281238]
[1725603329216,0.02772894,56560.0,56559.0,0.58642538]
[1725603329439,0.02772894,56560.0,56559.0,0.23181238]
[1725603329683,0.02772894,56560.0,56559.0,0.23581238]
[1725603330795,0.02772894,56560.0,56559.0,0.58942538]
[1725603331250,0.02772894,56560.0,56559.0,0.94303838]
[1725603331477,0.02772894,56560.0,56559.0,1.46235138]
[1725603331711,0.188776,56569.0,56566.0,0.176782]
[1725603331938,0.0277271,56567.0,56566.0,0.176782]
[1725603332168,0.13856224,56567.0,56565.0,0.53036]
[1725603332383,0.11083514,56566.0,56565.0,0.176786]
[1725603332663,0.11083514,56566.0,56565.0,0.53036]
[1725603332886,0.11083514,56566.0,56565.0,0.883935]
[1725603333378,0.37205322,56572.0,56566.0,0.353567]
[1725603333586,0.2875987,56571.0,56566.0,0.353567]
[1725603333804,0.1108287,56570.0,56566.0,0.352567]
[1725603334028,0.1108287,56570.0,56568.0,0.176777]
[1725603335555,0.1108287,56570.0,56569.0,0.176775]
[1725603335770,0.1108287,56570.0,56567.0,0.176781]
[1725603335999,0.1108287,56569.0,56567.0,0.176781]
[1725603336213,0.176769,56571.0,56567.0,0.176781]
[1725603336214,0.1108287,56570.0,56567.0,0.176781]
[1725603336441,0.1108287,56570.0,56566.0,0.176784]